fUSD/lending_fUSD_20250720
["ID","MTS","AMOUNT","RATE_DAILY","PERIOD"]
[373481943,1753019543267,-480.0,0.00020164,2]
[373481944,1753019543276,-480.0,0.00020164,2]
[373481945,1753019543286,-507.08,0.00020164,2]
[373481946,1753019543295,-622.75,0.00020164,2]
[373481947,1753019543304,-652.56,0.00020164,2]
[373481948,1753019543637,-873.97,0.00020164,2]
[373481949,1753019543647,-1133.69,0.00020164,2]
[373481950,1753019543657,-1078.11,0.00020164,2]
[373481951,1753019543666,-2024.83,0.00020164,2]
[373481952,1753019543676,-882.42,0.00020164,2]
[373481953,1753019543686,-562.85,0.00020164,2]
[373481954,1753019543696,-528.35,0.00020164,2]
[373481955,1753019543706,-808.63,0.00020164,2]
[373481956,1753019543716,-480.0,0.00020164,2]
[373481957,1753019543726,-481.92,0.00020164,2]
[373481958,1753019543736,-698.42,0.00020164,2]
[373481959,1753019543746,-1098.19,0.00020164,2]
[373481960,1753019543755,-480.0,0.00020164,2]
[373481961,1753019543765,-480.0,0.00020164,2]
[373481962,1753019543775,-1470.4,0.00020164,2]
[373481963,1753019543785,-480.0,0.00020164,2]
[373481964,1753019543794,-480.0,0.00020164,2]
[373481965,1753019543803,-480.0,0.00020164,2]
[373481966,1753019543813,-530.18,0.00020164,2]
[373481967,1753019543822,-480.0,0.00020164,2]
[373481968,1753019543832,-542.4,0.00020164,2]
[373481969,1753019543842,-480.0,0.00020164,2]
[373481970,1753019543853,-480.0,0.00020164,2]
[373481971,1753019543864,-480.0,0.00020164,2]
[373481972,1753019543873,-810.65,0.00020164,2]
[373481973,1753019543883,-509.75,0.00020164,2]
[373481974,1753019543892,-480.0,0.00020164,2]
[373481975,1753019543902,-1074.62,0.00020164,2]
[373481976,1753019543912,-480.0,0.00020164,2]
[373481977,1753019543922,-585.83,0.00020164,2]
[373481978,1753019543932,-488.38,0.00020164,2]
[373481979,1753019543942,-480.0,0.00020164,2]
[373481980,1753019543951,-1248.2,0.00020164,2]
[373481981,1753019543963,-512.42,0.00020164,2]
[373481982,1753019543973,-480.0,0.00020164,2]
[373481983,1753019543983,-480.0,0.00020164,2]
[373481984,1753019543993,-580.16,0.00020164,2]
[373481985,1753019544002,-480.0,0.00020164,2]
[373481986,1753019544012,-480.0,0.00020164,2]
[373481987,1753019544022,-480.0,0.00020164,2]
[373481988,1753019544032,-989.68,0.00020164,2]
[373481989,1753019544042,-480.0,0.00020164,2]
[373481990,1753019544051,-480.0,0.00020164,2]
[373481991,1753019544061,-1298.15,0.00020164,2]
[373481992,1753019544071,-1020.25,0.00020164,2]
[373481993,1753019544082,-507.62,0.00020164,2]
[373481994,1753019544092,-523.15,0.00020164,2]
[373481995,1753019544103,-556.53,0.00020164,2]
[373481996,1753019544114,-480.0,0.00020164,2]
[373481997,1753019544124,-1136.01,0.00020164,2]
[373481998,1753019544134,-480.0,0.00020164,2]
[373481999,1753019544143,-480.0,0.00020164,2]
[373482000,1753019544153,-480.0,0.00020164,2]
[373482001,1753019544162,-489.5,0.00020164,2]
[373482002,1753019544173,-480.0,0.00020164,2]
[373482003,1753019544183,-1095.88,0.00020164,2]
[373482004,1753019544194,-480.0,0.00020164,2]
[373482005,1753019544204,-480.0,0.00020164,2]
[373482006,1753019544216,-480.0,0.00020164,2]
[373482007,1753019544225,-571.14,0.00020164,2]
[373482008,1753019544235,-480.0,0.00020164,2]
[373482009,1753019544245,-480.0,0.00020164,2]
[373482010,1753019544254,-480.0,0.00020164,2]
[373482011,1753019544264,-3923.46,0.00020164,2]
[373482012,1753019544274,-2237.11,0.00020164,2]
[373482013,1753019544284,-705.3,0.00020164,2]
[373482014,1753019544294,-480.0,0.00020164,2]
[373482015,1753019544309,-834.1,0.00020164,2]
[373482016,1753019544320,-836.85,0.00020164,2]
[373482017,1753019544331,-480.0,0.00020164,2]
[373482018,1753019544342,-480.0,0.00020164,2]
[373482019,1753019544352,-480.0,0.00020164,2]
[373482020,1753019544364,-480.0,0.00020164,2]
[373482021,1753019544374,-480.0,0.00020164,2]
[373482022,1753019544385,-480.0,0.00020164,2]
[373482023,1753019544395,-893.54,0.00020164,2]
[373482024,1753019544405,-971.86,0.00020164,2]
[373482025,1753019544415,-697.5,0.00020164,2]
[373482026,1753019544424,-525.44,0.00020164,2]
[373482027,1753019544434,-480.0,0.00020164,2]
[373482028,1753019544444,-480.0,0.00020164,2]
[373482029,1753019544454,-480.0,0.00020164,2]
[373482030,1753019544465,-480.0,0.00020164,2]
[373482031,1753019544475,-730.73,0.00020164,2]
[373482032,1753019544487,-658.53,0.00020164,2]
[373482033,1753019544497,-480.0,0.00020164,2]
[373482034,1753019544507,-480.0,0.00020164,2]
[373482035,1753019544518,-163.275317,0.00020164,2]
[373482036,1753019544528,-598.2210068,0.00020164,2]
[373482037,1753019544540,-483.9,0.00020164,2]
[373482038,1753019544550,-1146.42,0.00020164,2]
[373482039,1753019544560,-163.275317,0.00020164,2]
[373482040,1753019544569,-480.0,0.00020164,2]
[373482041,1753019544579,-480.0,0.00020164,2]
[373482042,1753019544588,-524.05,0.00020164,2]
[373482043,1753019544598,-480.0,0.00020164,2]
[373482044,1753019544607,-1227.36,0.00020164,2]
[373482045,1753019544616,-747.03,0.00020164,2]
[373482046,1753019544626,-480.0,0.00020164,2]
[373482047,1753019544636,-480.0,0.00020164,2]
[373482048,1753019544645,-837.4,0.00020164,2]
[373482049,1753019544655,-6522.42,0.00020164,2]
[373482050,1753019544665,-746.83,0.00020164,2]
[373482051,1753019544675,-480.0,0.00020164,2]
[373482052,1753019544684,-6250.65,0.00020164,2]
[373482053,1753019544693,-482.81,0.00020164,2]
[373482054,1753019544703,-690.69,0.00020164,2]
[373482055,1753019544714,-480.0,0.00020164,2]
[373482056,1753019544723,-480.0,0.00020164,2]
[373482057,1753019544733,-480.0,0.00020164,2]
[373482058,1753019544743,-480.0,0.00020164,2]
[373482059,1753019544753,-1144.78,0.00020164,2]
[373482060,1753019544766,-569.37,0.00020164,2]
[373482061,1753019544775,-480.0,0.00020164,2]
[373482062,1753019544784,-180.9,0.00020164,2]
[373482063,1753019544794,-480.0,0.00020164,2]
[373482064,1753019544804,-689.85,0.00020164,2]
[373482065,1753019544814,-480.0,0.00020164,2]
[373482066,1753019544823,-738.41,0.00020164,2]
[373482067,1753019544832,-480.0,0.00020164,2]
[373482068,1753019544842,-480.0,0.00020164,2]
[373482069,1753019544852,-480.0,0.00020164,2]
[373482070,1753019544861,-668.36,0.00020164,2]
[373482071,1753019544871,-480.0,0.00020164,2]
[373482072,1753019544880,-1143.0,0.00020164,2]
[373482073,1753019544890,-932.37,0.00020164,2]
[373482074,1753019544899,-2985.1,0.00020164,2]
[373482075,1753019544909,-480.0,0.00020164,2]
[373482076,1753019544918,-939.17,0.00020164,2]
[373482077,1753019544928,-480.0,0.00020164,2]
[373482078,1753019544937,-480.0,0.00020164,2]
[373482079,1753019544947,-480.0,0.00020164,2]
[373482080,1753019544957,-1924.75,0.00020164,2]
[373482081,1753019544967,-480.0,0.00020164,2]
[373482082,1753019544976,-527.35,0.00020164,2]
[373482083,1753019544986,-601.3,0.00020164,2]
[373482084,1753019544996,-1898.09,0.00020164,2]
[373482085,1753019545006,-480.0,0.00020164,2]
[373482086,1753019545016,-3502.66,0.00020164,2]
[373482087,1753019545026,-480.0,0.00020164,2]
[373482088,1753019545035,-986.11,0.00020164,2]
[373482089,1753019545045,-480.0,0.00020164,2]
[373482090,1753019545054,-480.0,0.00020164,2]
[373482091,1753019545064,-1553.54,0.00020164,2]
[373482092,1753019545074,-480.0,0.00020164,2]
[373482093,1753019545084,-480.0,0.00020164,2]
[373482094,1753019545093,-480.0,0.00020164,2]
[373482095,1753019545108,-311.26,0.00020164,2]
[373482096,1753019545118,-1483.86,0.00020164,2]
[373482097,1753019545129,-1070.15,0.00020164,2]
[373482098,1753019545139,-480.0,0.00020164,2]
[373482099,1753019545149,-532.55,0.00020164,2]
[373482100,1753019545159,-1553.37,0.00020164,2]
[373482101,1753019545169,-480.0,0.00020164,2]
[373482102,1753019545179,-180.0,0.00020164,2]
[373482103,1753019545188,-480.0,0.00020164,2]
[373482104,1753019545197,-480.0,0.00020164,2]
[373482105,1753019545208,-480.0,0.00020164,2]
[373482106,1753019545217,-1194.6,0.00020164,2]
[373482107,1753019545227,-828.22,0.00020164,2]
[373482108,1753019545236,-480.0,0.00020164,2]
[373482109,1753019545246,-480.0,0.00020164,2]
[373482110,1753019545256,-1041.33,0.00020164,2]
[373482111,1753019545266,-1794.49,0.00020164,2]
[373482112,1753019545275,-1596.73,0.00020164,2]
[373482113,1753019545285,-480.0,0.00020164,2]
[373482114,1753019545295,-630.93,0.00020164,2]
[373482115,1753019545305,-4638.84,0.00020164,2]
[373482116,1753019545315,-480.0,0.00020164,2]
[373482117,1753019545325,-1777.66,0.00020164,2]
[373482118,1753019545335,-556.83,0.00020164,2]
[373482119,1753019545346,-480.0,0.00020164,2]
[373482120,1753019545356,-1897.84,0.00020164,2]
[373482121,1753019545369,-1256.18,0.00020164,2]
[373482122,1753019545380,-2882.58,0.00020164,2]
[373482123,1753019545390,-979.84,0.00020164,2]
[373482124,1753019545401,-480.0,0.00020164,2]
[373482125,1753019545411,-480.0,0.00020164,2]
[373482126,1753019545421,-707.99,0.00020164,2]
[373482127,1753019545431,-574.55,0.00020164,2]
[373482128,1753019545448,-38134.22,0.00020164,2]
[373482129,1753019545459,-522.0,0.00020164,2]
[373482130,1753019545473,-1106.08,0.00020164,2]
[373482131,1753019545483,-480.0,0.00020164,2]
[373482132,1753019545494,-480.0,0.00020164,2]
[373482133,1753019545504,-480.0,0.00020164,2]
[373482134,1753019545515,-480.0,0.00020164,2]
[373482135,1753019545525,-773.09,0.00020164,2]
[373482136,1753019545535,-277.28,0.00020164,2]
[373482137,1753019545547,-3225.28,0.00020164,2]
[373482138,1753019545557,-2593.99,0.00020164,2]
[373482139,1753019545567,-480.0,0.00020164,2]
[373482140,1753019545577,-10449.6,0.00020164,2]
[373482141,1753019545587,-2698.38,0.00020164,2]
[373482142,1753019545597,-480.0,0.00020164,2]
[373482143,1753019545607,-1260.52,0.00020164,2]
[373482144,1753019545616,-3171.67,0.00020164,2]
[373482145,1753019545626,-480.0,0.00020164,2]
[373482146,1753019545635,-480.0,0.00020164,2]
[373482147,1753019545645,-2207.57,0.00020164,2]
[373482148,1753019545655,-4837.24,0.00020164,2]
[373482149,1753019545664,-480.0,0.00020164,2]
[373482150,1753019545674,-1908.42,0.00020164,2]
[373482151,1753019545684,-480.0,0.00020164,2]
[373482152,1753019545694,-480.0,0.00020164,2]
[373482153,1753019545703,-3925.2,0.00020164,2]
[373482154,1753019545713,-480.0,0.00020164,2]
[373482155,1753019545723,-1106.38,0.00020164,2]
[373482156,1753019545734,-509.64,0.00020164,2]
[373482157,1753019545743,-480.0,0.00020164,2]
[373482158,1753019545752,-480.0,0.00020164,2]
[373482159,1753019545762,-675.33,0.00020164,2]
[373482160,1753019545771,-1549.05,0.00020164,2]
[373482161,1753019545782,-480.0,0.00020164,2]
[373482162,1753019545793,-4186.58,0.00020164,2]
[373482163,1753019545803,-920.58,0.00020164,2]
[373482164,1753019545813,-480.0,0.00020164,2]
[373482165,1753019545822,-575.28,0.00020164,2]
[373482166,1753019545832,-480.0,0.00020164,2]
[373482167,1753019545842,-480.0,0.00020164,2]
[373482168,1753019545851,-480.0,0.00020164,2]
[373482169,1753019545861,-480.0,0.00020164,2]
[373482170,1753019545870,-1601.32,0.00020164,2]
[373482171,1753019545880,-480.0,0.00020164,2]
[373482172,1753019545889,-2912.14,0.00020164,2]
[373482173,1753019545899,-480.0,0.00020164,2]
[373482174,1753019545908,-501.28,0.00020164,2]
[373482175,1753019545918,-480.0,0.00020164,2]
[373482176,1753019545927,-1575.77,0.00020164,2]
[373482177,1753019545937,-1649.03,0.00020164,2]
[373482178,1753019545946,-480.0,0.00020164,2]
[373482179,1753019545955,-480.0,0.00020164,2]
[373482180,1753019545966,-1937.56,0.00020164,2]
[373482181,1753019545977,-16754.36,0.00020164,2]
[373482182,1753019545987,-1894.53,0.00020164,2]
[373482183,1753019545999,-597.32,0.00020164,2]
[373482184,1753019546009,-480.0,0.00020164,2]
[373482185,1753019546018,-504.93,0.00020164,2]
[373482186,1753019546028,-480.0,0.00020164,2]
[373482187,1753019546038,-517.02,0.00020164,2]
[373482188,1753019546122,-673.9,0.00020164,2]
[373482189,1753019546131,-480.0,0.00020164,2]
[373482190,1753019546140,-1244.68,0.00020164,2]
[373482191,1753019546150,-480.0,0.00020164,2]
[373482192,1753019546160,-1980.55,0.00020164,2]
[373482193,1753019546169,-480.0,0.00020164,2]
[373482194,1753019546179,-480.0,0.00020164,2]
[373482195,1753019546189,-480.0,0.00020164,2]
[373482196,1753019546198,-480.0,0.00020164,2]
[373482197,1753019546209,-1245.96,0.00020164,2]
[373482198,1753019546219,-6803.71,0.00020164,2]
[373482199,1753019546229,-176.38,0.00020164,2]
[373482200,1753019546238,-480.0,0.00020164,2]
[373482201,1753019546248,-871.27,0.00020164,2]
[373482202,1753019546257,-1112.24,0.00020164,2]
[373482203,1753019546269,-1360.71,0.00020164,2]
[373482204,1753019546278,-480.0,0.00020164,2]
[373482205,1753019546288,-579.47,0.00020164,2]
[373482206,1753019546298,-480.0,0.00020164,2]
[373482207,1753019546309,-2360.18,0.00020164,2]
[373482208,1753019546320,-1144.57,0.00020164,2]
[373482209,1753019546331,-709.9,0.00020164,2]
[373482210,1753019546343,-957.17,0.00020164,2]
[373482211,1753019546355,-3060.53,0.00020164,2]
[373482212,1753019546367,-1194.62,0.00020164,2]
[373482213,1753019546378,-1014.42,0.00020164,2]
[373482214,1753019546388,-666.51,0.00020164,2]
[373482215,1753019546397,-1099.37,0.00020164,2]
[373482216,1753019546409,-622.5,0.00020164,2]
[373482217,1753019546419,-480.0,0.00020164,2]
[373482218,1753019546428,-4161.68,0.00020164,2]
[373482219,1753019546437,-1224.46,0.00020164,2]
[373482220,1753019546447,-3588.19,0.00020164,2]
[373482221,1753019546456,-480.0,0.00020164,2]
[373482222,1753019546469,-1009.8,0.00020164,2]
[373482223,1753019546478,-5042.4,0.00020164,2]
[373482224,1753019546488,-480.0,0.00020164,2]
[373482225,1753019546498,-759.09,0.00020164,2]
[373482226,1753019546507,-480.0,0.00020164,2]
[373482227,1753019546517,-480.0,0.00020164,2]
[373482228,1753019546526,-480.0,0.00020164,2]
[373482229,1753019546535,-892.48,0.00020164,2]
[373482230,1753019546546,-2738.0,0.00020164,2]
[373482231,1753019546556,-2154.18,0.00020164,2]
[373482232,1753019546566,-1765.61,0.00020164,2]
[373482233,1753019546575,-563.37,0.00020164,2]
[373482234,1753019546584,-381.9,0.00020164,2]
[373482235,1753019546594,-480.0,0.00020164,2]
[373482236,1753019546604,-3701.58,0.00020164,2]
[373482237,1753019546613,-1317.6,0.00020164,2]
[373482238,1753019546623,-1224.02,0.00020164,2]
[373482239,1753019546632,-1417.35,0.00020164,2]
[373482240,1753019546642,-494.3,0.00020164,2]
[373482241,1753019546651,-2675.44,0.00020164,2]
[373482242,1753019546660,-2516.48,0.00020164,2]
[373482243,1753019546670,-1280.96,0.00020164,2]
[373482244,1753019546680,-1234.43,0.00020164,2]
[373482245,1753019546689,-480.0,0.00020164,2]
[373482246,1753019546699,-1639.88,0.00020164,2]
[373482247,1753019546708,-480.0,0.00020164,2]
[373482248,1753019546718,-2371.21,0.00020164,2]
[373482249,1753019546728,-480.0,0.00020164,2]
[373482250,1753019546738,-1781.89,0.00020164,2]
[373482251,1753019546747,-4290.9,0.00020164,2]
[373482252,1753019546757,-673.12,0.00020164,2]
[373482253,1753019546767,-480.0,0.00020164,2]
[373482254,1753019546776,-2112.39,0.00020164,2]
[373482255,1753019546786,-509.06,0.00020164,2]
[373482256,1753019546795,-686.73,0.00020164,2]
[373482257,1753019546804,-1034.48,0.00020164,2]
[373482258,1753019546813,-578.43,0.00020164,2]
[373482259,1753019546823,-2302.39,0.00020164,2]
[373482260,1753019546832,-1841.2,0.00020164,2]
[373482261,1753019546841,-480.0,0.00020164,2]
[373482262,1753019546851,-810.97,0.00020164,2]
[373482263,1753019546860,-480.0,0.00020164,2]
[373482264,1753019546869,-1656.2,0.00020164,2]
[373482265,1753019546879,-510.33,0.00020164,2]
[373482266,1753019546888,-1875.92,0.00020164,2]
[373482267,1753019546897,-1830.19,0.00020164,2]
[373482268,1753019546907,-1530.02,0.00020164,2]
[373482269,1753019546916,-4600.51,0.00020164,2]
[373482270,1753019546926,-678.36,0.00020164,2]
[373482271,1753019546936,-1122.81,0.00020164,2]
[373482272,1753019546946,-755.77,0.00020164,2]
[373482273,1753019546956,-1854.23,0.00020164,2]
[373482274,1753019546970,-3405.09,0.00020164,2]
[373482275,1753019546980,-480.0,0.00020164,2]
[373482276,1753019546989,-184.67617483,0.00020173,2]
[373482277,1753019546999,-154.81399852,0.00020176,2]
[373482278,1753019547008,-2620.33,0.00020182,2]
[373482279,1753019547018,-150.83,0.00020187,2]
[373482280,1753019547028,-168.0,0.00020247,2]
[373482281,1753019547037,-150.0,0.00020251,2]
[373482282,1753019547046,-1000.0,0.0002026,2]
[373482283,1753019547055,-700.0,0.0002026,2]
[373482284,1753019547065,-1500.0,0.00020268,2]
[373482285,1753019547074,-1164.44913275,0.00020268,2]
[373482286,1753019547084,-151.0,0.00020273,2]
[373482287,1753019547093,-151.0,0.00020273,2]
[373482288,1753019547103,-151.0,0.00020273,2]
[373482289,1753019547112,-151.0,0.00020273,2]
[373482290,1753019547121,-151.0,0.00020273,2]
[373482291,1753019547130,-215.343328,0.00020273,2]
[373482292,1753019547139,-151.0,0.00020273,2]
[373482293,1753019547149,-151.0,0.00020273,2]
[373482294,1753019547158,-152.422035,0.00020273,2]
[373482295,1753019547167,-152.422035,0.00020273,2]
[373482296,1753019547176,-309.984824,0.00020273,2]
[373482297,1753019547186,-309.984824,0.00020273,2]
[373482298,1753019547196,-151.0,0.00020273,2]
[373482299,1753019547205,-480.0,0.00020273,2]
[373482300,1753019547216,-158.307474,0.00020273,2]
[373482301,1753019547226,-544.29,0.00020273,2]
[373482302,1753019547236,-151.0,0.00020273,2]
[373482303,1753019547244,-480.0,0.00020273,2]
[373482304,1753019547254,-480.0,0.00020273,2]
[373482305,1753019547263,-480.0,0.00020273,2]
[373482306,1753019547272,-207.367706,0.00020273,2]
[373482307,1753019547281,-207.367701,0.00020273,2]
[373482308,1753019547291,-480.0,0.00020273,2]
[373482309,1753019547299,-480.0,0.00020273,2]
[373482310,1753019547309,-194.707207,0.00020273,2]
[373482311,1753019547318,-991.02,0.00020273,2]
[373482312,1753019547327,-480.0,0.00020273,2]
[373482313,1753019547336,-573.77,0.00020273,2]
[373482314,1753019547346,-759.54,0.00020273,2]
[373482315,1753019547356,-1132.31,0.00020273,2]
[373482316,1753019547365,-817.3,0.00020273,2]
[373482317,1753019547374,-5060.37,0.00020273,2]
[373482318,1753019547383,-561.39,0.00020273,2]
[373482319,1753019547392,-1056.44,0.00020273,2]
[373482320,1753019547401,-561.76,0.00020273,2]
[373482321,1753019547411,-1722.64,0.00020273,2]
[373482322,1753019547420,-1184.53,0.00020273,2]
[373482323,1753019547430,-480.0,0.00020273,2]
[373482324,1753019547438,-708.25,0.00020273,2]
[373482325,1753019547447,-640.15,0.00020273,2]
[373482326,1753019547457,-654.33,0.00020273,2]
[373482327,1753019547469,-525.6,0.00020273,2]
[373482328,1753019547479,-2315.41,0.00020273,2]
[373482329,1753019547488,-480.0,0.00020273,2]
[373482330,1753019547498,-486.88,0.00020273,2]
[373482331,1753019547508,-1036.06,0.00020273,2]
[373482332,1753019547518,-529.02,0.00020273,2]
[373482333,1753019547529,-480.0,0.00020273,2]
[373482334,1753019547541,-1025.76,0.00020273,2]
[373482335,1753019547551,-573.81,0.00020273,2]
[373482336,1753019547561,-802.35,0.00020273,2]
[373482337,1753019547570,-480.0,0.00020273,2]
[373482338,1753019547580,-619.12,0.00020273,2]
[373482339,1753019547590,-480.0,0.00020273,2]
[373482340,1753019547599,-480.0,0.00020273,2]
[373482341,1753019547609,-933.84,0.00020273,2]
[373482342,1753019547619,-1899.42,0.00020273,2]
[373482343,1753019547629,-1365.37,0.00020273,2]
[373482344,1753019547639,-480.0,0.00020273,2]
[373482345,1753019547648,-480.0,0.00020273,2]
[373482346,1753019547658,-643.56,0.00020273,2]
[373482347,1753019547667,-480.0,0.00020273,2]
[373482348,1753019547676,-480.0,0.00020273,2]
[373482349,1753019547685,-491.14,0.00020273,2]
[373482350,1753019547694,-513.7,0.00020273,2]
[373482351,1753019547703,-467.51135369,0.00020273,2]
[373482352,1753019547713,-742.91,0.00020273,2]
[373482353,1753019547723,-770.53,0.00020273,2]
[373482354,1753019547732,-480.0,0.00020273,2]
[373482355,1753019547741,-480.0,0.00020273,2]
[373482356,1753019547751,-480.0,0.00020273,2]
[373482357,1753019547760,-480.0,0.00020273,2]
[373482358,1753019547769,-703.59,0.00020273,2]
[373482359,1753019547778,-6566.95,0.00020273,2]
[373482360,1753019547787,-559.29,0.00020273,2]
[373482361,1753019547797,-480.0,0.00020273,2]
[373482362,1753019547807,-480.0,0.00020273,2]
[373482363,1753019547816,-507.08,0.00020273,2]
[373482364,1753019547825,-622.75,0.00020273,2]
[373482365,1753019547834,-652.56,0.00020273,2]
[373482366,1753019547844,-873.97,0.00020273,2]
[373482367,1753019547853,-1133.69,0.00020273,2]
[373482368,1753019547863,-1078.11,0.00020273,2]
[373482369,1753019547873,-2024.83,0.00020273,2]
[373482370,1753019547884,-882.42,0.00020273,2]
[373482371,1753019547893,-562.85,0.00020273,2]
[373482372,1753019547903,-528.35,0.00020273,2]
[373482373,1753019547914,-808.63,0.00020273,2]
[373482374,1753019547923,-274.18119254,0.00020273,2]
[373482375,1753019547933,-481.92,0.00020273,2]
[373482376,1753019547943,-698.42,0.00020273,2]
[373482377,1753019547953,-1098.19,0.00020273,2]
[373482378,1753019547963,-1470.4,0.00020273,2]
[373482379,1753019547972,-480.0,0.00020273,2]
[373482380,1753019547982,-480.0,0.00020273,2]
[373482381,1753019547992,-530.18,0.00020273,2]
[373482382,1753019548002,-542.4,0.00020273,2]
[373482383,1753019548012,-2168.69,0.00020273,2]
[373482384,1753019548022,-480.0,0.00020273,2]
[373482385,1753019548031,-480.0,0.00020273,2]
[373482386,1753019548041,-810.65,0.00020273,2]
[373482387,1753019548051,-509.75,0.00020273,2]
[373482388,1753019548061,-480.0,0.00020273,2]
[373482389,1753019548072,-1074.62,0.00020273,2]
[373482390,1753019548082,-480.0,0.00020273,2]
[373482391,1753019548092,-585.83,0.00020273,2]
[373482392,1753019548101,-488.38,0.00020273,2]
[373482393,1753019548111,-1248.2,0.00020273,2]
[373482394,1753019548121,-1171.8,0.00020273,2]
[373482395,1753019548131,-512.42,0.00020273,2]
[373482396,1753019548140,-607.07,0.00020273,2]
[373482397,1753019548151,-480.0,0.00020273,2]
[373482398,1753019548160,-989.68,0.00020273,2]
[373482399,1753019548170,-480.0,0.00020273,2]
[373482400,1753019548179,-1298.15,0.00020273,2]
[373482401,1753019548189,-1020.25,0.00020273,2]
[373482402,1753019548198,-507.62,0.00020273,2]
[373482403,1753019548208,-523.15,0.00020273,2]
[373482404,1753019548217,-3702.53,0.00020273,2]
[373482405,1753019548226,-294.18083,0.00020273,2]
[373482406,1753019548236,-556.53,0.00020273,2]
[373482407,1753019548246,-480.0,0.00020273,2]
[373482408,1753019548255,-294.180832,0.00020273,2]
[373482409,1753019548265,-1136.01,0.00020273,2]
[373482410,1753019548274,-480.0,0.00020273,2]
[373482411,1753019548284,-480.0,0.00020273,2]
[373482412,1753019548294,-489.5,0.00020273,2]
[373482413,1753019548303,-498.94859607,0.00020273,2]
[373482414,1753019548312,-1095.88,0.00020273,2]
[373482415,1753019548322,-480.0,0.00020273,2]
[373482416,1753019548331,-480.0,0.00020273,2]
[373482417,1753019548340,-379.33,0.00020273,2]
[373482418,1753019548349,-1608.55,0.00020273,2]
[373482419,1753019548359,-480.0,0.00020273,2]
[373482421,1753019548368,-3923.46,0.00020273,2]
[373482422,1753019548381,-2237.11,0.00020273,2]
[373482423,1753019548391,-705.3,0.00020273,2]
[373482425,1753019548400,-480.0,0.00020273,2]
[373482426,1753019548409,-834.1,0.00020273,2]
[373482427,1753019548419,-836.85,0.00020273,2]
[373482428,1753019548428,-480.0,0.00020273,2]
[373482430,1753019548438,-455.29,0.00020273,2]
[373482431,1753019548447,-480.0,0.00020273,2]
[373482432,1753019548457,-480.0,0.00020273,2]
[373482434,1753019548469,-480.0,0.00020273,2]
[373482435,1753019548478,-893.54,0.00020273,2]
[373482436,1753019548488,-971.86,0.00020273,2]
[373482438,1753019548498,-697.5,0.00020273,2]
[373482439,1753019548508,-525.44,0.00020273,2]
[373482440,1753019548518,-260.0,0.00020273,2]
[373482442,1753019548528,-730.73,0.00020273,2]
[373482443,1753019548538,-658.53,0.00020273,2]
[373482444,1753019548548,-480.0,0.00020273,2]
[373482446,1753019548558,-290.34796551,0.00020273,2]
[373482447,1753019548567,-163.275317,0.00020273,2]
[373482449,1753019548577,-1394.43,0.00020273,2]
[373482450,1753019548587,-483.9,0.00020273,2]